bitfinex-derivatives/quotes_BTCF0:USTF0_20251009
["timestamp","ask_amount","ask_price","bid_price","bid_amount"]
[1760036637715,0.005,120910.0,120900.0,4.16304694]
[1760036638313,0.005,120910.0,120900.0,3.41404694]
[1760036638511,0.005,120910.0,120900.0,4.16304694]
[1760036640508,0.005,120910.0,120900.0,3.41404694]
[1760036640710,0.005,120910.0,120900.0,4.16304694]
[1760036642714,0.005,120910.0,120900.0,3.41404694]
[1760036642914,0.005,120910.0,120900.0,4.16304694]
[1760036643619,0.005,120910.0,120900.0,3.41404694]
[1760036643811,0.005,120910.0,120900.0,4.16304694]
[1760036644012,0.005,120910.0,120900.0,3.41404694]
[1760036644306,0.00058989,120910.0,120900.0,4.16300694]
[1760036646023,0.00058989,120910.0,120900.0,3.41404694]
[1760036646211,0.00058989,120910.0,120900.0,4.16300694]
[1760036646711,0.00058989,120910.0,120900.0,1.34936694]
[1760036646915,0.00058989,120910.0,120900.0,4.16300694]
[1760036650621,0.00058989,120910.0,120900.0,4.01458238]
[1760036651119,0.00058989,120910.0,120900.0,1.20094238]
[1760036651322,0.00058989,120910.0,120900.0,3.26558238]
[1760036651621,0.00058989,120910.0,120900.0,4.01454238]
[1760036652115,0.00058989,120910.0,120900.0,3.26558238]
[1760036652322,5.412e-05,120910.0,120900.0,4.01454238]
[1760036652821,5.412e-05,120910.0,120900.0,4.16332328]
[1760036653426,5.412e-05,120910.0,120900.0,3.41436328]
[1760036653717,5.412e-05,120910.0,120900.0,4.16332328]
[1760036654218,5.412e-05,120910.0,120900.0,4.16328328]
[1760036654423,5.412e-05,120910.0,120900.0,3.26558238]
[1760036654824,0.04182412,120910.0,120900.0,3.34372048]
[1760036655127,0.04182412,120910.0,120900.0,4.01450238]
[1760036655325,0.04409,120920.0,120910.0,0.0826565]
[1760036655516,0.04409,120920.0,120910.0,0.77884745]
[1760036656527,0.04409,120920.0,120910.0,3.59240745]
[1760036657621,0.04409,120920.0,120910.0,0.77884745]
[1760036657823,0.04409,120920.0,120910.0,2.84348745]
[1760036658022,0.04409,120920.0,120910.0,3.59240745]
[1760036659120,0.04409,120920.0,120910.0,0.77884745]
[1760036659322,0.04409,120920.0,120910.0,3.59240745]
[1760036660627,0.04409,120920.0,120910.0,0.77884745]
[1760036660822,0.04409,120920.0,120910.0,3.2570165]
[1760036661018,0.5153,120920.0,120910.0,0.4434565]
[1760036661223,0.5153,120920.0,120910.0,2.5080965]
[1760036661421,0.8053,120920.0,120910.0,3.2570165]
[1760036661627,0.8053,120920.0,120910.0,3.40580561]
[1760036661822,0.8053,120920.0,120910.0,1.34116561]
[1760036662129,1.58414055,120920.0,120910.0,0.98036561]
[1760036662329,1.14069095,120920.0,120910.0,0.8315765]
[1760036662827,1.22334055,120920.0,120910.0,0.8315765]
[1760036663028,0.8879496,120920.0,120910.0,0.0826565]
[1760036663232,1.22334055,120920.0,120910.0,0.8315765]
[1760036664424,1.14069095,120920.0,120910.0,0.8315765]
[1760036664626,0.4053,120920.0,120910.0,1.63184351]
[1760036664928,0.33409,120920.0,120910.0,1.78063262]
[1760036665126,0.33409,120920.0,120910.0,1.67655656]
[1760036665729,0.33409,120920.0,120910.0,1.52776745]
[1760036667527,0.29,120920.0,120910.0,1.52776745]
[1760036669531,0.29,120920.0,120910.0,1.67655656]
[1760036670928,0.32902,120920.0,120910.0,2.99231656]
[1760036671132,0.32902,120920.0,120910.0,3.74119656]
[1760036672128,0.32902,120920.0,120910.0,0.92763656]
[1760036672328,0.32902,120920.0,120910.0,3.74119656]
[1760036673430,0.32902,120920.0,120910.0,0.9276417]
[1760036673636,0.32902,120920.0,120910.0,3.7411617]
[1760036674136,0.32902,120920.0,120910.0,3.7841159]
[1760036675433,0.32902,120920.0,120910.0,3.63532679]
[1760036675634,0.32902,120920.0,120910.0,0.82180679]
[1760036675830,0.32902,120920.0,120910.0,3.63532679]
[1760036676035,0.32902,120920.0,120910.0,3.2569765]
[1760036676634,0.39585,120920.0,120910.0,0.4434565]
[1760036676930,0.39585,120920.0,120910.0,3.2569365]
[1760036677136,0.32902,120920.0,120910.0,3.63528679]
[1760036677337,0.32902,120920.0,120910.0,3.2569365]
[1760036677635,0.32902,120920.0,120910.0,3.63528679]
[1760036677840,0.13902,120920.0,120910.0,3.63528679]
[1760036679136,0.13902,120920.0,120910.0,0.82180679]
[1760036679336,0.20585,120920.0,120910.0,3.2568965]
[1760036680437,0.13902,120920.0,120910.0,3.2568965]
[1760036683238,0.13902,120920.0,120910.0,3.63524679]
[1760036683540,0.13902,120920.0,120910.0,0.82180679]
[1760036684437,0.13902,120920.0,120910.0,3.63520679]
[1760036684637,0.13902,120920.0,120910.0,0.82180679]
[1760036684828,0.13902,120920.0,120910.0,3.2568565]
[1760036685639,0.03902,120920.0,120910.0,0.4434565]
[1760036686140,0.03902,120920.0,120910.0,3.63520679]
[1760036688939,0.10827,120920.0,120910.0,3.2568165]
[1760036689540,0.48662029,120920.0,120910.0,0.4434565]
[1760036689845,1.15662029,120920.0,120910.0,3.2568165]
[1760036690644,1.23926989,120920.0,120910.0,0.59224561]
[1760036691047,1.15662029,120920.0,120910.0,1.34104561]
[1760036691247,1.15662029,120920.0,120910.0,1.1922565]
[1760036692444,0.77827,120920.0,120910.0,1.1922565]
[1760036692646,1.15662029,120920.0,120910.0,1.1922565]
[1760036695045,0.77827,120920.0,120910.0,1.1922565]
[1760036695247,0.8609196,120920.0,120910.0,1.1922565]
[1760036695548,1.23926989,120920.0,120910.0,1.1922565]
[1760036699246,0.30902,120920.0,120910.0,1.57060679]
[1760036699551,0.03902,120920.0,120910.0,1.57056679]
[1760036699746,0.10827,120920.0,120910.0,0.4434565]
[1760036699947,0.10827,120920.0,120910.0,1.29628193]
[1760036701045,0.1909196,120920.0,120910.0,1.29628193]
[1760036701351,0.4909196,120920.0,120910.0,1.29628193]
[1760036701547,0.86926989,120920.0,120910.0,1.29628193]
[1760036701752,0.78662029,120920.0,120910.0,1.29628193]
[1760036702853,0.33902,120920.0,120910.0,1.29628193]
[1760036703053,0.33902,120920.0,120910.0,1.1922165]
[1760036703255,0.86750989,120920.0,120910.0,1.1922165]
[1760036703553,0.78486029,120920.0,120910.0,0.4434565]
[1760036703853,0.40651,120920.0,120910.0,1.1922165]
[1760036704350,0.03902,120920.0,120910.0,1.1922165]
[1760036704559,0.03902,120920.0,120910.0,1.76398635]
[1760036704752,0.04909,120930.0,120920.0,0.0826496]
[1760036704954,0.32909,120930.0,120920.0,0.54748888]
[1760036705259,0.32909,120930.0,120920.0,0.92583917]
[1760036705452,0.285,120930.0,120920.0,1.97055989]
[1760036705654,0.115,120930.0,120920.0,1.97055989]
[1760036705854,0.005,120930.0,120920.0,1.97055989]
[1760036706357,0.04677,120950.0,120930.0,0.0826411]
[1760036706553,0.33677,120950.0,120940.0,1.15318229]
[1760036706857,0.33677,120950.0,120940.0,1.23581829]
[1760036708346,0.33677,120950.0,120940.0,1.59661829]
[1760036709362,0.33677,120950.0,120940.0,1.18258629]
[1760036709658,0.33677,120950.0,120940.0,1.93130629]
[1760036710456,0.33677,120950.0,120940.0,1.18258629]
[1760036710652,0.295,120950.0,120940.0,2.19230178]
[1760036710849,0.295,120950.0,120940.0,2.59230178]
[1760036711055,0.005,120950.0,120940.0,2.59230178]
[1760036711255,0.115,120950.0,120940.0,2.59230178]
[1760036711455,0.115,120950.0,120940.0,2.59330178]
[1760036711655,0.115,120950.0,120940.0,2.74141483]
[1760036711955,0.115,120950.0,120940.0,2.54799527]
[1760036713956,0.115,120950.0,120940.0,2.39988222]
[1760036714659,0.005,120950.0,120940.0,2.39988222]
[1760036715661,0.04638,120950.0,120940.0,1.27285193]
[1760036715855,0.005,120950.0,120940.0,4.46408222]
[1760036717563,0.005,120950.0,120940.0,4.56761003]
[1760036718360,0.005,120950.0,120940.0,4.46408222]
[1760036719065,0.005,120950.0,120940.0,1.65120222]
[1760036719264,0.005,120950.0,120940.0,4.46396222]
[1760036720060,0.005,120950.0,120940.0,1.65120222]
[1760036720265,0.04638,120950.0,120940.0,4.46388222]
[1760036721967,0.11387,120950.0,120940.0,0.87285193]
[1760036722267,0.11387,120950.0,120940.0,3.68549193]
[1760036722659,0.11387,120950.0,120940.0,0.87285193]
[1760036722857,0.11387,120950.0,120940.0,3.68549193]
[1760036723168,0.11387,120950.0,120940.0,0.87285193]
[1760036723368,0.11387,120950.0,120940.0,3.68549193]
[1760036723568,0.04638,120950.0,120940.0,3.68449193]
[1760036723972,0.04638,120950.0,120940.0,3.78797974]
[1760036724668,0.04638,120950.0,120940.0,4.16633003]
[1760036724971,0.04638,120950.0,120940.0,4.06280222]
[1760036725264,0.04638,120950.0,120940.0,4.06380222]
[1760036725669,0.04638,120950.0,120940.0,4.16733003]
[1760036727367,0.11387,120950.0,120940.0,3.78893974]
[1760036727570,0.11387,120950.0,120940.0,3.68541193]
[1760036729068,0.11387,120950.0,120940.0,0.87285193]
[1760036729466,0.04638,120950.0,120940.0,3.68441193]
[1760036729671,0.11387,120950.0,120940.0,3.68441193]
[1760036730773,0.04638,120950.0,120940.0,3.68441193]
[1760036732572,0.04638,120950.0,120940.0,4.06276222]
[1760036733678,0.04638,120950.0,120940.0,4.16649494]
[1760036733879,0.04638,120950.0,120940.0,3.41801494]
[1760036734078,0.04638,120950.0,120940.0,4.06272222]
[1760036734478,0.04638,120950.0,120940.0,4.16645494]
[1760036735583,0.04638,120950.0,120940.0,4.16724354]
[1760036735976,0.04638,120950.0,120940.0,3.41880354]
[1760036736277,0.04638,120950.0,120940.0,4.12432094]
[1760036736482,0.005,120950.0,120940.0,4.12432094]
[1760036737185,0.005,120950.0,120940.0,4.12428094]
[1760036739174,0.005,120950.0,120940.0,3.78906465]
[1760036739382,0.04498,120950.0,120940.0,4.12428094]
[1760036739577,0.005,120950.0,120940.0,4.12428094]
[1760036739783,0.005,120950.0,120940.0,4.02054822]
[1760036742281,0.04498,120950.0,120940.0,4.02054822]
[1760036742582,0.04498,120950.0,120940.0,1.20806822]
[1760036742781,0.04498,120950.0,120940.0,4.02054822]
[1760036743282,0.005,120950.0,120940.0,4.02054822]
[1760036745382,0.04501,120950.0,120940.0,4.02054822]
[1760036747985,0.04501,120950.0,120940.0,1.20806822]
[1760036748182,0.04501,120950.0,120940.0,4.02046822]
[1760036748378,0.04501,120950.0,120940.0,1.20806822]
[1760036748682,0.04501,120950.0,120940.0,4.02046822]
[1760036748881,0.04501,120950.0,120940.0,1.20806822]
[1760036749082,0.04501,120950.0,120940.0,4.02046822]
[1760036749283,0.04501,120950.0,120940.0,3.27210822]
[1760036749583,0.04501,120950.0,120940.0,4.02046822]
[1760036750388,0.04501,120950.0,120940.0,3.27210822]
[1760036750687,0.04501,120950.0,120940.0,4.02046822]
[1760036750888,0.04501,120950.0,120940.0,3.27210822]
[1760036751188,0.04501,120950.0,120940.0,4.02046822]
[1760036752286,0.04501,120950.0,120940.0,1.20806822]
[1760036752484,0.04501,120950.0,120940.0,4.02042822]
[1760036753490,0.04501,120950.0,120940.0,4.16854127]
[1760036754190,0.04501,120950.0,120940.0,1.35618127]
[1760036754484,0.65274722,120950.0,120940.0,1.76928498]
[1760036754685,0.65274722,120950.0,120940.0,2.10450127]
[1760036755189,0.65274722,120950.0,120940.0,1.95638822]
[1760036756385,0.65274722,120950.0,120940.0,2.10486232]
[1760036756588,0.65274722,120950.0,120940.0,2.10386232]
[1760036757592,1.05274722,120950.0,120940.0,2.10386232]
[1760036757989,1.05274722,120950.0,120940.0,1.95538822]
[1760036764197,1.05274722,120950.0,120940.0,1.20706822]
[1760036764399,1.05274722,120950.0,120940.0,1.95534822]
[1760036764798,0.71753093,120950.0,120940.0,1.95534822]
[1760036764999,1.05274722,120950.0,120940.0,2.21774822]
[1760036767503,0.71753093,120950.0,120940.0,2.32158861]
[1760036767701,1.05274722,120950.0,120940.0,2.32158861]
[1760036768099,0.71753093,120950.0,120940.0,1.57330861]
[1760036768299,0.37659629,120960.0,120940.0,2.05914861]
[1760036768501,0.33138,120960.0,120950.0,0.88248578]
[1760036768699,0.33138,120960.0,120950.0,1.63072578]
[1760036768898,0.33138,120960.0,120950.0,1.52688539]
[1760036769396,0.29,120960.0,120950.0,0.77864539]
[1760036769705,0.29,120960.0,120950.0,2.26210168]
[1760036769904,0.005,120970.0,120950.0,2.26210168]
[1760036770103,0.215,120970.0,120960.0,0.77909948]
[1760036770902,0.25572,120970.0,120960.0,0.77909948]
[1760036771105,0.25572,120970.0,120960.0,0.44388319]
[1760036772806,0.65475629,120970.0,120960.0,0.44388319]
[1760036773105,0.65475629,120970.0,120960.0,3.25608319]
[1760036773298,0.65475629,120970.0,120960.0,0.1086669]
[1760036773506,1.49817179,120970.0,120960.0,2.06396]
[1760036773702,1.49817179,120970.0,120960.0,2.1465823]
[1760036773908,1.49817179,120970.0,120960.0,2.8947823]
[1760036774506,1.1629555,120970.0,120960.0,2.90853328]
[1760036774709,1.49817179,120970.0,120960.0,2.90853328]
[1760036774899,1.01652,120970.0,120960.0,2.90853328]
[1760036775104,1.01652,120970.0,120960.0,2.90849328]
[1760036775408,1.35173629,120970.0,120960.0,3.24370957]
[1760036775907,1.35173629,120970.0,120960.0,3.39218367]
[1760036776412,0.95173629,120970.0,120960.0,3.39218367]
[1760036778204,0.95173629,120970.0,120960.0,3.24370957]
[1760036779506,0.1871623,120960.0,120950.0,2.2123541]
[1760036779810,1.51839488,120960.0,120950.0,0.85176172]
[1760036780107,1.51839488,120960.0,120940.0,0.06761593]
[1760036780108,0.1871691,120950.0,120940.0,0.06761593]
[1760036780408,0.10454,120930.0,120920.0,0.23608075]
[1760036780606,1.15761538,120930.0,120920.0,0.23608075]
[1760036780806,1.91841538,120930.0,120920.0,0.98420075]
[1760036781007,1.83577258,120930.0,120920.0,0.98420075]
[1760036781310,1.50055629,120930.0,120920.0,0.98420075]
[1760036781909,1.50055629,120930.0,120920.0,0.98520075]
[1760036783107,1.50055629,120930.0,120920.0,0.83672665]
[1760036783504,1.50055629,120930.0,120920.0,0.83572665]
[1760036783706,1.50055629,120930.0,120920.0,0.83580665]
[1760036783905,1.50055629,120930.0,120920.0,0.93936863]
[1760036784111,1.50055629,120930.0,120920.0,0.19116863]
[1760036784312,1.58319909,120930.0,120920.0,0.93932863]
[1760036784608,1.58319909,120930.0,120920.0,0.93936863]
[1760036786407,1.2479828,120930.0,120920.0,0.93936863]
[1760036786710,1.58319909,120930.0,120920.0,0.93936863]
[1760036787917,1.58319909,120930.0,120920.0,0.83580665]
[1760036788603,1.1841628,120930.0,120920.0,0.42282294]
[1760036788807,0.40454,120930.0,120920.0,0.42282294]
[1760036789007,0.40454,120930.0,120920.0,1.53186294]
[1760036789207,0.14072,120930.0,120920.0,0.78362294]
[1760036789409,0.4841597,120940.0,120930.0,0.0826428]
[1760036789608,0.70152,120940.0,120930.0,0.41785909]
[1760036790112,0.76534,120940.0,120930.0,0.41785909]
[1760036791810,1.18319229,120940.0,120930.0,0.41785909]
[1760036792215,1.10055629,120940.0,120930.0,0.41785909]
[1760036792608,1.10055629,120940.0,120930.0,0.0826428]
[1760036792815,1.10055629,120940.0,120930.0,0.52124542]
[1760036794019,1.18319229,120940.0,120930.0,0.18602913]
[1760036794315,1.18319229,120940.0,120930.0,0.93426913]
[1760036794816,1.18319229,120940.0,120930.0,0.8308828]
[1760036795211,1.18319229,120940.0,120930.0,0.93426913]
[1760036795517,1.18335567,120940.0,120930.0,0.93426913]
[1760036795818,1.18335567,120940.0,120930.0,0.18602913]
[1760036796019,1.18335567,120940.0,120930.0,0.8308828]
[1760036796316,1.22630106,120940.0,120930.0,0.93426913]
[1760036796818,0.1903128,120930.0,120920.0,0.10837307]
[1760036797014,1.62776292,120930.0,120920.0,0.85661307]
[1760036797208,0.1237965,120910.0,120900.0,0.00496257]
[1760036797417,1.61025156,120910.0,120900.0,0.00496257]
[1760036797718,2.01025156,120910.0,120900.0,0.75508257]
[1760036798626,2.01025156,120910.0,120900.0,0.75512257]
[1760036799122,2.01025156,120910.0,120900.0,0.75508257]
[1760036799613,2.02418251,120910.0,120900.0,0.75508257]
[1760036800122,2.02418251,120910.0,120900.0,0.75608257]
[1760036801319,2.02418251,120910.0,120880.0,0.00496339]
[1760036801320,0.1903401,120890.0,120880.0,0.00496339]
[1760036801520,1.55026516,120890.0,120880.0,0.75640339]
[1760036802424,1.55026516,120890.0,120880.0,0.00496339]
[1760036802618,1.55026516,120890.0,120880.0,0.75636339]
[1760036802818,1.55026516,120890.0,120880.0,0.00496339]
[1760036803219,1.55026516,120890.0,120880.0,0.75940339]
[1760036804120,1.55026516,120890.0,120880.0,0.75640339]
[1760036804524,1.55026516,120890.0,120880.0,0.00496339]
[1760036804724,1.55026516,120890.0,120880.0,0.75632339]
[1760036804922,1.95026516,120890.0,120880.0,0.00496339]
[1760036805121,1.95026516,120890.0,120880.0,0.26320339]
[1760036805627,1.95026516,120890.0,120880.0,0.00496339]
[1760036805827,1.55026516,120890.0,120880.0,0.75632339]
[1760036806327,1.55026516,120890.0,120880.0,0.75684339]
[1760036807627,1.95026516,120890.0,120880.0,0.00496339]
[1760036807828,1.95026516,120890.0,120880.0,0.18960339]
[1760036809329,1.95026516,120890.0,120880.0,0.75720339]
[1760036809730,1.95026516,120890.0,120880.0,0.75728339]
[1760036810029,2.01642775,120890.0,120880.0,0.75728339]
[1760036811730,1.95026516,120890.0,120880.0,0.75728339]
[1760036811931,2.01664598,120890.0,120880.0,0.75728339]
[1760036813332,2.01664598,120890.0,120880.0,0.75712339]
[1760036813929,1.1719401,120890.0,120880.0,0.83976039]
[1760036814125,1.55026516,120890.0,120880.0,0.00496339]
[1760036814329,1.55026516,120890.0,120880.0,0.74564339]
[1760036814529,1.55026516,120890.0,120880.0,0.00496339]
[1760036814832,1.55026516,120890.0,120880.0,0.75724339]
[1760036815125,1.6180147,120890.0,120880.0,0.00496339]
[1760036815330,1.6180147,120890.0,120880.0,0.30056339]
[1760036815526,0.1922338,120870.0,120860.0,0.00496422]
[1760036815730,1.20135886,120870.0,120860.0,0.00496422]
[1760036815931,1.94048392,120870.0,120860.0,0.00496422]
[1760036816128,1.94048392,120870.0,120860.0,0.75720422]
[1760036816329,1.94048392,120870.0,120860.0,0.00496422]
[1760036816531,1.56215886,120870.0,120860.0,0.50244422]
[1760036816731,1.56215886,120870.0,120860.0,0.90344422]
[1760036816931,1.56215886,120870.0,120860.0,1.15820422]
[1760036817232,1.56215886,120870.0,120860.0,1.24085492]
[1760036817426,1.56215886,120870.0,120860.0,0.48865492]
[1760036817627,1.56215886,120870.0,120860.0,1.24085492]
[1760036818026,1.1838338,120870.0,120860.0,1.24085492]
[1760036818433,1.56215886,120870.0,120860.0,1.24085492]
[1760036819029,0.37955,120870.0,120860.0,0.48865492]
[1760036819228,0.37955,120870.0,120860.0,1.24085492]
[1760036819428,0.4622338,120870.0,120860.0,1.24085492]
[1760036820633,0.84055886,120870.0,120860.0,1.24085492]
[1760036821230,1.20135886,120870.0,120860.0,0.00596422]
[1760036821436,1.57968392,120870.0,120860.0,0.00596422]
[1760036821632,1.57968392,120870.0,120860.0,0.75812422]
[1760036821830,1.20135886,120870.0,120860.0,0.75812422]
[1760036822030,1.20135886,120870.0,120860.0,0.00596422]
[1760036822231,1.20135886,120870.0,120860.0,0.75812422]
[1760036823239,1.20135886,120870.0,120860.0,0.84081492]
[1760036826238,0.4622338,120870.0,120860.0,0.84065492]
[1760036826431,0.4622338,120870.0,120860.0,0.08865492]
[1760036826633,0.27,120870.0,120860.0,0.86697998]
[1760036826843,0.04113,120880.0,120870.0,0.0826838]
[1760036827043,0.04113,120880.0,120870.0,0.46100886]
[1760036827044,0.403807,120880.0,120870.0,0.46100886]
[1760036827341,0.403807,120880.0,120870.0,0.8347238]
[1760036827545,0.470157,120880.0,120870.0,0.8347238]
[1760036827938,0.403807,120880.0,120870.0,0.8347238]
[1760036829041,0.470157,120880.0,120860.0,0.93007292]
[1760036829248,0.10538,120870.0,120860.0,2.99559292]
[1760036829447,0.10538,120870.0,120860.0,4.14751292]
[1760036829645,0.03903,120870.0,120860.0,2.99559292]
[1760036829845,0.03903,120870.0,120860.0,3.74747292]
[1760036831143,0.1217138,120870.0,120860.0,0.84738712]
[1760036831344,0.1880638,120870.0,120860.0,3.30382712]
[1760036831543,0.1880638,120870.0,120860.0,3.00819276]
[1760036831850,0.1880638,120870.0,120860.0,3.00919276]
[1760036832052,0.1880638,120870.0,120860.0,0.19195276]
[1760036832352,0.10538,120870.0,120860.0,3.00919276]
[1760036833558,0.10538,120870.0,120860.0,3.00976419]
[1760036834066,0.1880638,120870.0,120860.0,0.57084925]
[1760036834264,0.1880638,120870.0,120860.0,3.38788925]
[1760036834564,0.1880638,120870.0,120860.0,0.57084925]
[1760036834766,0.1880638,120870.0,120860.0,3.38784925]
[1760036834966,0.10538,120870.0,120860.0,3.38784925]
[1760036835169,0.03903,120870.0,120860.0,3.38784925]
[1760036835667,0.10538,120870.0,120860.0,0.19252419]
[1760036835868,0.10538,120870.0,120860.0,3.38776925]
[1760036836270,0.10538,120870.0,120860.0,3.65016925]
[1760036836869,0.10538,120870.0,120860.0,3.54629998]
[1760036837867,0.10538,120870.0,120860.0,3.65013682]
[1760036838169,0.10538,120870.0,120860.0,3.54629998]
[1760036839169,0.10538,120870.0,120860.0,3.65010851]
[1760036839370,0.10538,120870.0,120860.0,3.54629998]
[1760036839665,0.1880638,120870.0,120860.0,0.35105492]
[1760036839871,0.56638886,120870.0,120860.0,3.31616902]
[1760036840073,0.1880638,120870.0,120860.0,2.56492902]
[1760036840273,0.1880638,120870.0,120860.0,3.31616902]
[1760036841170,0.1880638,120870.0,120860.0,0.49952902]
[1760036841372,0.1880638,120870.0,120860.0,3.16761492]
[1760036841873,0.1880638,120870.0,120860.0,0.35105492]
[1760036842069,0.92718886,120870.0,120860.0,0.35105492]
[1760036842368,1.20718886,120870.0,120860.0,1.25068902]
[1760036842568,1.20718886,120870.0,120860.0,0.41683832]
[1760036842764,1.20718886,120870.0,120860.0,1.25068902]
[1760036843275,1.20718886,120870.0,120860.0,1.20605411]
[1760036843874,1.98551392,120870.0,120860.0,0.37220341]
[1760036844175,1.98551392,120870.0,120860.0,1.12336341]
[1760036844477,1.60718886,120870.0,120860.0,0.86096341]
[1760036845669,1.98551392,120870.0,120860.0,0.10980341]
[1760036845870,1.98551392,120870.0,120860.0,0.86088341]
[1760036846072,1.60718886,120870.0,120860.0,0.86088341]
[1760036846564,1.60718886,120870.0,120860.0,0.75704422]
[1760036846769,1.98551392,120870.0,120860.0,0.75704422]
[1760036847376,1.98551392,120870.0,120860.0,0.00596422]
[1760036847674,1.98551392,120870.0,120860.0,0.75700422]
[1760036848265,1.98551392,120870.0,120860.0,0.00596422]
[1760036848465,1.98551392,120870.0,120860.0,0.60768422]
[1760036848673,1.98551392,120870.0,120860.0,0.71152765]
[1760036848868,0.1880707,120860.0,120850.0,0.14855875]
[1760036849071,1.22719576,120860.0,120850.0,0.89967875]
[1760036849279,1.22719576,120860.0,120850.0,0.14855875]
[1760036849581,1.24005898,120860.0,120850.0,0.75120465]
[1760036849773,1.24005898,120860.0,120850.0,8.465e-05]
[1760036849970,1.24005898,120860.0,120850.0,0.75320465]
[1760036850172,1.18029466,120860.0,120850.0,0.00308465]
[1760036850374,1.18029466,120860.0,120850.0,0.75416465]
[1760036850573,0.8488707,120860.0,120850.0,0.08578215]
[1760036850768,0.8488707,120860.0,120850.0,0.83686215]
[1760036851977,1.18029466,120860.0,120850.0,0.83686215]
[1760036852574,0.5488707,120860.0,120850.0,0.91098558]
[1760036852778,0.3080707,120860.0,120850.0,0.83686215]
[1760036852975,0.22538,120860.0,120850.0,0.08578215]
[1760036853171,0.15903,120860.0,120850.0,1.59762215]
[1760036853370,0.03903,120870.0,120860.0,0.0826907]
[1760036853572,0.18903,120870.0,120860.0,0.77491466]
[1760036853776,0.0707005,120870.0,120860.0,0.77491466]
[1760036854578,0.0707005,120870.0,120860.0,0.77591466]
[1760036854974,0.0707005,120870.0,120860.0,0.92438876]
[1760036855172,0.2146843,120870.0,120860.0,0.5929648]
[1760036855376,0.2146843,120870.0,120860.0,3.4097648]
[1760036856185,0.1320005,120870.0,120860.0,3.4097648]
[1760036856379,0.1320005,120870.0,120860.0,3.4096848]
[1760036857281,0.1320005,120870.0,120860.0,3.4096448]
[1760036857483,0.0707005,120870.0,120860.0,3.2611707]
[1760036857779,0.0707005,120870.0,120860.0,2.5100907]
[1760036857984,0.0707005,120870.0,120860.0,3.2610907]
[1760036860087,0.0707005,120870.0,120860.0,3.5234907]
[1760036860489,0.0707005,120870.0,120860.0,3.5234107]
[1760036861488,0.0707005,120870.0,120860.0,3.2609307]
[1760036861692,0.0707005,120870.0,120860.0,3.36464634]
[1760036861982,0.04113,120880.0,120870.0,0.0826838]
[1760036862188,0.31113,120880.0,120870.0,1.58238415]
[1760036862379,0.31113,120880.0,120870.0,1.73085825]
[1760036862981,0.27,120880.0,120870.0,2.13085825]
[1760036863188,0.04305,120910.0,120900.0,0.0826633]
[1760036863189,0.005,120910.0,120900.0,0.0826633]
[1760036863389,0.04305,120910.0,120900.0,3.75379317]
[1760036863590,0.04305,120910.0,120900.0,0.54701282]
[1760036863794,0.10435,120910.0,120900.0,0.54701726]
[1760036863987,0.93594685,120910.0,120900.0,0.10355396]
[1760036864188,1.22594685,120910.0,120900.0,0.85703396]
[1760036864387,1.14329035,120910.0,120900.0,0.94069726]
[1760036864994,0.39435,120910.0,120900.0,0.18721726]
[1760036865193,0.39435,120910.0,120900.0,1.00616311]
[1760036865389,0.39435,120910.0,120900.0,1.00608311]
[1760036865590,0.39435,120910.0,120900.0,0.90252915]
[1760036866493,0.39435,120910.0,120900.0,0.90152915]
[1760036867396,0.39435,120910.0,120900.0,0.90252915]
[1760036867995,0.21435,120910.0,120900.0,0.90252915]
[1760036872298,0.40435,120910.0,120900.0,0.90208915]
[1760036873194,0.40435,120910.0,120900.0,0.90108915]
[1760036873890,0.40435,120910.0,120900.0,0.14776915]
[1760036874091,0.40435,120910.0,120900.0,0.90204915]
[1760036875199,0.40435,120910.0,120900.0,0.14876915]
[1760036875394,0.11305,120910.0,120900.0,1.2900695]
[1760036875601,0.04305,120910.0,120900.0,1.6498695]
[1760036876100,0.04305,120910.0,120900.0,1.36528311]
[1760036876299,0.10894,120910.0,120900.0,0.61212311]
[1760036876495,0.10894,120910.0,120900.0,3.07040311]
[1760036877092,0.10894,120910.0,120900.0,2.96684915]
[1760036877498,0.35719303,120910.0,120900.0,3.21510218]
[1760036878301,0.10894,120910.0,120900.0,3.21510218]
[1760036879200,0.10894,120910.0,120900.0,3.21486218]
[1760036880003,0.10894,120910.0,120900.0,2.46202218]
[1760036880201,0.10894,120910.0,120900.0,0.14876915]
[1760036880405,0.35719303,120910.0,120900.0,3.21474218]
[1760036881800,0.35719303,120910.0,120900.0,0.39602218]
[1760036881998,0.35719303,120910.0,120900.0,3.21366218]
[1760036882599,0.35719303,120910.0,120900.0,3.21466218]
[1760036882801,0.35719303,120910.0,120900.0,2.96640915]
[1760036883000,0.35719303,120910.0,120900.0,3.21466218]
[1760036883710,0.35719303,120910.0,120900.0,0.39702218]
[1760036883903,0.10894,120910.0,120900.0,3.21458218]
[1760036884101,0.35719303,120910.0,120900.0,3.21458218]
[1760036884298,0.35719303,120910.0,120900.0,0.39702218]
[1760036884503,0.35719303,120910.0,120900.0,1.00480311]
[1760036884701,1.59890256,120910.0,120900.0,1.00472311]
[1760036884899,1.1023965,120910.0,120900.0,0.16965981]
[1760036885106,1.35064953,120910.0,120900.0,0.92201981]
[1760036885409,1.35064953,120910.0,120900.0,0.81846585]
[1760036885606,1.35064953,120910.0,120900.0,0.90112915]
[1760036885805,1.35064953,120910.0,120900.0,0.90012915]
[1760036886108,1.01974,120910.0,120900.0,0.14776915]
[1760036886313,0.25894,120910.0,120900.0,1.39663521]
[1760036886612,0.19305,120910.0,120900.0,1.39667521]
[1760036886806,0.005,120910.0,120900.0,1.79667521]
[1760036887111,0.005,120910.0,120900.0,2.15747521]
[1760036887906,0.005,120910.0,120900.0,1.65532824]
[1760036888411,0.005,120910.0,120900.0,2.40772824]
[1760036888609,0.005,120910.0,120900.0,2.16047521]
[1760036888806,0.005,120910.0,120900.0,2.40872824]
[1760036889006,0.005,120910.0,120900.0,2.16047521]
[1760036890504,0.005,120910.0,120900.0,1.40807521]
[1760036890812,0.005,120910.0,120900.0,4.22539521]
[1760036891011,0.005,120910.0,120900.0,4.34691081]
[1760036893712,0.005,120910.0,120900.0,4.60931081]
[1760036893905,0.005,120910.0,120900.0,4.60895081]
[1760036897815,0.005,120910.0,120900.0,4.75742491]
[1760036898015,0.04471,120910.0,120900.0,4.35702491]
[1760036898416,0.04471,120910.0,120900.0,3.34274491]
[1760036898616,0.04471,120910.0,120900.0,4.09462491]
[1760036899212,0.04471,120910.0,120900.0,4.09362491]
[1760036900118,0.04471,120910.0,120900.0,4.09262491]
[1760036900318,0.04471,120910.0,120900.0,4.09362491]
[1760036900515,0.35840303,120910.0,120900.0,0.54649628]
[1760036900713,0.11015,120910.0,120900.0,3.46640501]
[1760036901018,0.11015,120910.0,120900.0,3.31893091]